Cogmind - Beta 16 @@@ ROGUE MODE // 2026.01.05 @ 08:57:50 Player: Qvest Result: Self-destructed Performance ------------- Evolutions (0) 0 Regions Visited (4) 800 Robots Destroyed (6) 30 Value Destroyed (112) 112 Prototype IDs (0) 0 Alien Tech Used (0) 0 Bonus (0) 0 TOTAL SCORE: 942 Bonus ------- None Cogmind --------- Core Integrity 216/250 Matter 250/300 Energy 125/125 System Corruption 0% Temperature Cool (0) Movement Rolling (110) Ox2 Location -9/Mines Parts ------- > --- POWER (1) -------- Light Ion Engine > --- PROPULSION (2) --- Wheel Wheel > --- UTILITY (2) ------ High-capacity Storage Unit Seismic Detector > --- WEAPON (2) ------- Small Laser Light Assault Rifle > --- INVENTORY (20) --- Ion Engine Nuclear Core Nuclear Core Fission Core Aluminum Leg Aluminum Leg Aluminum Leg Wheel Compact Wheel High-capacity Storage Unit Large Battery (200) Large Battery (200) Light Assault Rifle Grenade Launcher Rocket Launcher Peak State ------------ > --- POWER ------------ Light Ion Engine > --- PROPULSION ------- Wheel Wheel > --- UTILITY ---------- High-capacity Storage Unit Seismic Detector > --- WEAPON ----------- Small Laser Light Assault Rifle > --- INVENTORY -------- Ion Engine Nuclear Core Fission Core Aluminum Leg Aluminum Leg Aluminum Leg Wheel Compact Wheel High-capacity Storage Unit Large Battery Large Battery Light Assault Rifle Rocket Launcher [Rating: 9] Favorites ----------- Power Light Ion Engine Engine Light Ion Engine Propulsion Wheel Leg Aluminum Leg Wheel Wheel Utility Seismic Detector Device Seismic Detector Storage High-capacity Storage Unit Weapon Small Laser Energy Gun Small Laser Ballistic Gun Light Assault Rifle Build | -11 -10 -10 -10 -9 ------- Run | Yrd Mat Min Exi Min Slots Evolved . | . . . . . Power . | . . . . . Propulsion . | . . . . . Utility . | . . . . . Weapon . | . . . . . Parts Attached 18 | 10 2 4 2 . Power 4 | 1 . 3 . . Engine 4 | 1 . 3 . . Core . | . . . . . Reactor . | . . . . . Propulsion 6 | 5 . . 1 . Treads . | . . . . . Leg 2 | 2 . . . . Wheel 4 | 3 . . 1 . Hover . | . . . . . Flight . | . . . . . Utility 3 | 2 . . 1 . Device 1 | 1 . . . . Storage 2 | 1 . . 1 . Processor . | . . . . . Hackware . | . . . . . Protection . | . . . . . Artifact . | . . . . . Weapon 5 | 2 2 1 . . Energy Gun 4 | 2 2 . . . Energy Cannon . | . . . . . Ballistic Gun 1 | . . 1 . . Ballistic Cannon . | . . . . . Launcher . | . . . . . Special Weapon . | . . . . . Impact Weapon . | . . . . . Slashing Weapon . | . . . . . Piercing Weapon . | . . . . . Special Melee Weapon . | . . . . . Unidentified Prototypes . | . . . . . Parts Lost . | . . . . . Power . | . . . . . Propulsion . | . . . . . Utility . | . . . . . Weapon . | . . . . . Highest Loss Streak . | . . . . . To Critical Strikes . | . . . . . Average Backups 9 | 4 8 8 10 14 Power 1 | . 1 1 1 4 Propulsion 4 | 2 5 5 4 5 Utility 1 | . 1 . 2 3 Weapon 1 | . 1 1 2 2 Tool/Special . | . . . . . Unused Backups 15 | 2 . 1 . 12 Power 4 | . . . . 4 Propulsion 4 | 2 . . . 2 Utility 4 | . . 1 . 3 Weapon 3 | . . . . 3 Tool/Special . | . . . . . Average Slot Usage (%) 100 | . 100 100 100 100 Engine 14 | . 14 14 14 14 Leg 9 | . 8 28 7 . Wheel 18 | . 19 . 20 28 Device 14 | . 14 14 14 14 Storage 14 | . 14 14 14 14 Energy Gun 17 | . 28 26 14 14 Ballistic Gun 10 | . . 1 14 14 Peak Build Rating 9 | 8 8 8 9 9 Average Rating 7 | 5 7 7 7 9 On Entrance 6 | . 8 8 7 9 Avg Prop Armor Cover (%) . | . . . . . Naked Turns . | . . . . . Heaviest Build 46 | 12 12 12 46 46 Greatest Support 26 | 26 20 20 20 20 Greatest Overweight (x) 2 | 1 . . 2 2 Average Overweight (x) 1 | . . . 1 2 Largest Inventory Capacity 20 | 8 8 8 20 20 Average Capacity 14 | 7 8 8 16 20 Most Carried 15 | 8 8 8 14 15 Average Carried 9 | 4 7 7 10 14 Final Capacity 20 | 8 8 8 20 20 Final Carried 15 | 8 8 8 14 15 Class Distribution -------------------- 74% | Scavenger-Mutant 25% | Mutant Dominant Class ---------------- Mutant | -10/Materials Mutant | -10/Mines Scavenger-Mutant | -10/Exiles Scavenger-Mutant | -9/Mines Resources | -11 -10 -10 -10 -9 ----------- Run | Yrd Mat Min Exi Min Matter Collected 370 | 274 76 20 . . Remotely . | . . . . . Salvage Created 174 | 62 97 15 . . Parts 11 | 8 1 2 . . Haulers Intercepted . | . . . . . Recyclers Shooed 1 | 1 . . . . Parts Field Recycled . | . . . . . Retrieved Matter . | . . . . . Parts Self-Destructed . | . . . . . Prevented . | . . . . . Parts Restored . | . . . . . Kills | -11 -10 -10 -10 -9 ------- Run | Yrd Mat Min Exi Min Combat Hostiles Destroyed 3 | . 2 1 . . Guns 2 | . 1 1 . . Classes Destroyed 3 | 1 1 1 . . Tunneler 3 | 3 . . . . Swarmer 1 | . . 1 . . Grunt 2 | . 2 . . . Best Kill Streak 3 | 3 2 1 . . Combat Bots Only 2 | . 2 1 . . Max Kills in Single Turn 1 | 1 1 1 . . Gunslinging . | . . . . . Exploded . | . . . . . Melee . | . . . . . Uniques/NPCs Destroyed . | . . . . . Combat | -11 -10 -10 -10 -9 -------- Run | Yrd Mat Min Exi Min Hostile Shots Fired 16 | . 15 1 . . Missed 3 | . 3 . . . Hits 13 | . 12 1 . . Projectile 13 | . 12 1 . . Damage Taken 164 | . 157 7 . . Core 34 | . 34 . . . Absorbed by Shields . | . . . . . Core Remaining (%) 100 | 100 . . . . Volleys Fired 16 | 5 10 1 . . Largest 2 | 2 2 2 . . Hottest 90 | 90 90 90 . . Shots Fired 32 | 10 20 2 . . Gun 32 | 10 20 2 . . Cannon . | . . . . . Launcher . | . . . . . Special . | . . . . . Kinetic . | . . . . . Thermal 32 | 10 20 2 . . Explosive . | . . . . . Electromagnetic . | . . . . . Robot Hit Streak 4 | 4 4 1 . . Robot Miss Streak 2 | 1 2 1 . . Penetration Max . | . . . . . Secondary Targets . | . . . . . Shots Hit Robots 20 | 7 12 1 . . Core Hits 9 | 4 4 1 . . Critical Kills . | . . . . . Critical Parts Destroyed . | . . . . . Critical Strikes 1 | . 1 . . . Burn 1 | . 1 . . . Melee Attacks . | . . . . . Impact . | . . . . . Slashing . | . . . . . Piercing . | . . . . . Sneak Attacks . | . . . . . Combat Hostiles . | . . . . . Follow-up Attacks . | . . . . . Damage Inflicted 237 | 84 142 11 . . Guns 237 | 84 142 11 . . Cannons . | . . . . . Explosions . | . . . . . Melee . | . . . . . Ramming . | . . . . . Kinetic . | . . . . . Thermal 237 | 84 142 11 . . Explosive . | . . . . . Electromagnetic . | . . . . . Impact . | . . . . . Slashing . | . . . . . Piercing . | . . . . . Highest Corruption . | . . . . . Average Corruption . | . . . . . Corruption Purged . | . . . . . Corruption Blocked . | . . . . . Overload Shots . | . . . . . Overflow Damage . | . . . . . Projectiles . | . . . . . Explosions . | . . . . . Melee . | . . . . . Knockbacks . | . . . . . Impact . | . . . . . Kinetic . | . . . . . Secondary . | . . . . . Self-Inflicted Damage . | . . . . . Shots . | . . . . . Rammed . | . . . . . Targets Rammed . | . . . . . Kicked . | . . . . . Crushed . | . . . . . Highest Temperature 357 | 70 357 30 . . Average Temperature 137 | 27 194 18 . . Received Heat Transfer 93 | . 93 . . . Effects 1 | . 1 . . . Energy Bleed 1 | . 1 . . . Siege Activations . | . . . . . Martial Activations . | . . . . . Shielding Activations . | . . . . . Robots Disrupted . | . . . . . Combat Hostiles . | . . . . . Robots Corrupted . | . . . . . Combat Hostiles . | . . . . . Parts Fried . | . . . . . Impact Corruptions . | . . . . . Robots Melted 1 | . 1 . . . Combat Hostiles 1 | . 1 . . . Parts Melted 5 | 2 3 . . . Heat Transferred 706 | 235 446 25 . . Parts Sabotaged . | . . . . . Parts Stolen . | . . . . . Parts Stripped . | . . . . . Power Chain Reactions . | . . . . . Alert | -11 -10 -10 -10 -9 ------- Run | Yrd Mat Min Exi Min Maximum Alert Level . | . . . . . Low Security (%) 100 | 100 100 100 . 100 Level 1 . | . . . . . Level 2 . | . . . . . Level 3 . | . . . . . Level 4 . | . . . . . Level 5 . | . . . . . High Security . | . . . . . Max Security . | . . . . . Peak Influence 40 | 10 40 20 . . Initial . | . . . . . Average 3 | 1 10 2 . . Influence Increases 85 | 15 50 20 . . Destroy 0b10 Robot/C 60 | . 40 20 . . Destroy 0b10 Robot/NC 15 | 15 . . . . Destroy Leader 10 | . 10 . . . Influence Decreases 85 | 15 50 20 . . Time Decay 85 | 15 50 20 . . Squads Dispatched 1 | . 1 . . . Investigation . | . . . . . Extermination . | . . . . . Reinforcement 1 | . 1 . . . Assault . | . . . . . Garrison . | . . . . . Intercept . | . . . . . Searches Triggered . | . . . . . Construction Impeded . | . . . . . Haulers Reinforced . | . . . . . Active Scanning Responses . | . . . . . Cargo Convoy Interrupts . | . . . . . Stealth | -11 -10 -10 -10 -9 --------- Run | Yrd Mat Min Exi Min Distress Signals 2 | . 2 . . . Communications Jammed . | . . . . . Distress Signals . | . . . . . Times Spotted 7 | . 6 1 . . Peak Tracking Total 3 | . 3 1 . . Tactical Retreats . | . . . . . Traps | -11 -10 -10 -10 -9 ------- Run | Yrd Mat Min Exi Min Traps Triggered . | . . . . . Indirectly . | . . . . . Trap Hack Attempts . | . . . . . Triggered . | . . . . . Disarmed . | . . . . . Reprogrammed . | . . . . . Reused . | . . . . . Traps Extracted . | . . . . . Installed . | . . . . . Triggered . | . . . . . Machines | -11 -10 -10 -10 -9 ---------- Run | Yrd Mat Min Exi Min Machines Disabled . | . . . . . Max in Single Turn . | . . . . . Machines Repaired . | . . . . . Machines Dismantled . | . . . . . Machines Sabotaged . | . . . . . Overloaded Fab Kills . | . . . . . Hacking | -11 -10 -10 -10 -9 --------- Run | Yrd Mat Min Exi Min Machines Accessed 4 | . . . 4 . Terminals . | . . . . . Fabricators . | . . . . . Repair Stations . | . . . . . Recycling Units . | . . . . . Scanalyzers . | . . . . . Garrison Access . | . . . . . Total Hacks 49 | . . . 49 . Successful 49 | . . . 49 . Failed . | . . . . . Catastrophic . | . . . . . Database Lockouts . | . . . . . Manual . | . . . . . Terminals . | . . . . . Fabricators . | . . . . . Repair Stations . | . . . . . Recycling Units . | . . . . . Scanalyzers . | . . . . . Garrison Access . | . . . . . Terminal Hacks 49 | . . . 49 . Record 49 | . . . 49 . Fabricator Hacks . | . . . . . Repair Station Hacks . | . . . . . Recycling Unit Hacks . | . . . . . Scanalyzer . | . . . . . Garrison Access Hacks . | . . . . . Unauthorized Hacks . | . . . . . Terminals . | . . . . . Fabricators . | . . . . . Repair Stations . | . . . . . Recycling Units . | . . . . . Scanalyzers . | . . . . . Garrison Access . | . . . . . Data Cores Recovered . | . . . . . Used . | . . . . . Hacking Detections . | . . . . . Full Trace Events . | . . . . . Feedback Events . | . . . . . Feedback Blocked . | . . . . . Robot Schematics Acquired . | . . . . . Robots Built . | . . . . . Authchips . | . . . . . Time . | . . . . . Total Robot Build Rating . | . . . . . Part Schematics Acquired . | . . . . . Parts Built . | . . . . . Authchips . | . . . . . Time . | . . . . . Total Part Build Rating . | . . . . . Part Studies Acquired . | . . . . . Parts Repaired . | . . . . . Time . | . . . . . Parts Recycled . | . . . . . Recycled Matter . | . . . . . Retrieved Matter . | . . . . . Retrieved Components . | . . . . . Parts Scanalyzed . | . . . . . Part Schematics Acquired . | . . . . . Parts Damaged . | . . . . . Bothacking | -11 -10 -10 -10 -9 ------------ Run | Yrd Mat Min Exi Min Used RIF Installer . | . . . . . Robots Hacked . | . . . . . Non-combat . | . . . . . Combat . | . . . . . Robot Hacks Applied . | . . . . . Relay Couplers Released . | . . . . . Fabnet Peak Effective % . | . . . . . Robots Rewired . | . . . . . Allies Hacked . | . . . . . Hacks Repelled . | . . . . . Allies | -11 -10 -10 -10 -9 -------- Run | Yrd Mat Min Exi Min Total Allies . | . . . . . Largest Group . | . . . . . Highest-Rated Group . | . . . . . Highest-Rated Ally . | . . . . . Total Orders . | . . . . . Ally Attacks . | . . . . . Total Damage . | . . . . . Kills . | . . . . . Allies Corrupted . | . . . . . Allies Melted . | . . . . . Intel | -11 -10 -10 -10 -9 ------- Run | Yrd Mat Min Exi Min Active Infowar (turns) 1867 | 16 166 272 1212 201 Seismic 1867 | 16 166 272 1212 201 Robot Analysis Total . | . . . . . Derelict Logs Recovered 1 | . . . . 1 Drone Launches . | . . . . . Drone Recoveries . | . . . . . Exploration | -11 -10 -10 -10 -9 ------------- Run | Yrd Mat Min Exi Min Turns Passed 1971 | 120 166 272 1212 201 Spaces Moved 1583 | 80 110 213 1069 111 Core 6 | 6 . . . . Treads . | . . . . . Legs 537 | 34 35 213 255 . Wheels 1040 | 40 75 . 814 111 Hover . | . . . . . Flight . | . . . . . Fastest Speed 50 | 50 80 120 80 110 Average Speed 111 | 99 92 120 112 110 Slowest Speed 120 | 120 120 120 120 110 Overloaded Moves . | . . . . . Propulsion Burnouts . | . . . . . Robots Hopped . | . . . . . Potential Cave-ins . | . . . . . Cave-ins Triggered . | . . . . . Exploration Rate (%) 36 | 4 17 37 93 32 Regions Visited 4 Branch Regions 3 Pre-discovered Areas 1 | . . . 1 . Known Exits Taken . | . . . . . Unknown Exits Taken 4 | 1 1 1 1 . Scrap Searched . | . . . . . Spaces Dug . | . . . . . Terrain Destroyed . | . . . . . Melee . | . . . . . Projectile . | . . . . . AOE . | . . . . . Terrain Rammed . | . . . . . Walls Destroyed . | . . . . . Machines Disabled . | . . . . . Actions | -11 -10 -10 -10 -9 --------- Run | Yrd Mat Min Exi Min Total 1764 | 107 153 231 1084 189 Wait 108 | . 26 5 . 77 Move 1579 | 79 109 212 1068 111 Hop . | . . . . . Pick Up 22 | 10 1 2 8 1 Fast Attach 8 | 7 . 1 . . Attach 2 | . . . 2 . Detach 1 | . . 1 . . Swap 12 | 3 5 3 1 . Drop 14 | 3 2 6 3 . Fire 16 | 5 10 1 . . Melee . | . . . . . Ram . | . . . . . Kick . | . . . . . Crush . | . . . . . Escape Stasis . | . . . . . Rewire 2 | . . . 2 . Trap . | . . . . . Miscellaneous . | . . . . . Route ------- -11/Scrapyard -10/Materials -10/Mines -10/Exiles (discovered 2 exits: [*Min x2]) -9/Mines History --------- Turn | Location | Event 28 | -11/Scrapyard | Discovered new exit (range 16) 121 | -11/Scrapyard | Entered Materials 233 | -10/Materials | Met 8R-AWN 270 | -10/Materials | Discovered new exit (range 14) 287 | -10/Materials | Entered Mines 288 | -10/Mines | Followed 8R-AWN into the Mines 311 | -10/Mines | Build established: Mutant 474 | -10/Mines | Received a Rocket Launcher from a helpful Derelict 488 | -10/Mines | Discovered new exit (range 5) 559 | -10/Mines | Entered Exiles 575 | -10/Exiles | Discovered new exit (range 15) 589 | -10/Exiles | Welcomed by 8R-AWN 612 | -10/Exiles | Met EX-HEX 661 | -10/Exiles | Met EX-BIN 807 | -10/Exiles | Build established: Scavenger-Mutant 829 | -10/Exiles | Met EX-DEC 835 | -10/Exiles | Learned location of Zion (-7) 943 | -10/Exiles | Discovered new exit (range 10) 1147 | -10/Exiles | Visited The Gauntlet 1771 | -10/Exiles | Entered Mines 1785 | -9/Mines | Met a Derelict bent on vengeance 1820 | -9/Mines | YI-UF0 nonchalantly dropped a Grenade Launcher on the ground 1972 | -9/Mines | Self-destructed Last Messages --------------- 01436_ Connecting with DEC's Terminal... 01711_ Acquired Rigged Fission Core. 01716_ Acquired Rigged Nuclear Core. LOCATION=UNKNOWN GOAL=ESCAPE 01772_ K-01 Serf collects debris. 01774_ K-01 Serf cleans the Pulverizer. 01778_ K-01 Serf collects debris. 01781_ K-01 Serf cleans the Pulverizer. 01782_ K-01 Serf collects debris. 01785_ K-01 Serf cleans the Pulverizer. 01818_ Acquired derelict log, extracted data. Data stored: Lower Caves entrances (x1). 01820_ YI-UF0 nonchalantly drops a Grenade Launcher on the ground. 01822_ Acquired Grenade Launcher. 01837_ YI-UF0 mumbles something. 01891_ K-01 Serf collects debris. 01897_ YI-UF0 mumbles something. 01967_ K-01 Serf collects debris. Map ----- +----------------------------------------------------+ | | | | | | | | | | | | | ?????????????????????????????????????????????????? | | ##############???????????????????????????????????? | | # ???????????????????????????????????? | | # """"?????????????????????????????????????? | | # """"?????????????#???????????????????????? | | # """" ??????????? ##?????????????????????? | | # #????????? ?????????????????????? | | # """" """" #????????? ?????????????????????? | | # """" """" #????#??? ?????????????????????? | | # """" """" #????# ?? ?????????????????????? | | # #????? """ #?????????????????????? | | ##### ########?????? """ #?????????????????????? | | ????# """ #?????????????????????? | | ??### ########??????? #?????????????????????? | | ?## ##?????????????? #?????????????????????? | | ## ##????????????? ?????????????????????? | | # ######????????? ??????????????????????? | | #????????? ??????????????????????? | | ## #### #?????????#r#??????????????????????? | | ######??# #?????????#@#??????????????????????? | | ##???????# #???####### #######????????????????? | | #?????????# ##### ?????????? | | ##????????### #############????????????????? | | ???????### ####### #????????????????????????????? | | ??????## ?????# #????????????????????????????? | | ??????# ??????# #????????????????????????????? | | ??????# ??????# #????????????????????????????? | | ???????# #??????# #????????????????????????????? | | ??????## #??????# #????????????????????????????? | | ????### ##?????# #????????????????????????????? | | ???## ####### #????????????????????????????? | | ???# #????????????????????????????? | | ???# ###### #????????????????????????????? | | ???# #????# ##### ??????????????? | | # ## #????# ??????????????? | | ???## ##????# #### ??????????????? | | ??????# #?????# #????????????????????????????? | | ?????## ##????# #????????????????????????????? | | ?# ## ##???# #????????????????????????????? | | ?# ##### #????????????????????????????? | | ?# #????????????????????????????? | | # ##### ?????????????????????? | | # ######???# #???????????????????? | | # #?????????# ## ##???????????????????? | +----------------------------------------------------+ Best States ------------- Heat Dissipation 25 Energy Generation 10 Energy Capacity 125 Matter Stores 300 Matter Capacity 300 Sight Range 16 Terrain Scan Density 10 Evasion (%) 55 Item Schematics ----------------- None Robot Schematics ------------------ None Fabricated ------------ Nothing Repaired ---------- Nothing Studied --------- None Alien Tech Used ----------------- None Achievements -------------- Follow The Leader Challenges ------------ None Game ------ Seed ComponentAntisysCompressor Manual? 0 Play Time 00:33:02 Cumulative 38.0 hours Start 2026.01.04 @ 23:58:20 End 2026.01.05 @ 08:57:50 Sessions 3 Manual Loads 0 Difficulty Rogue Special Mode None Game No. 16 Rogue 16 Adventurer 0 Explorer 0 Win Type - Total 0 Types 0/0/0/0/0/0/0/0/0/0 Lore% 10 Gallery% 19 Achievement% 15 Wizard Run 0 Options --------- Layout 1 ASCII 0 Keyboard 0 Movement Arrows Keybinds 0 Fullscreen 1 Font 24/Smallcaps Map View 50x35 Zoom Use 0% Tactical HUD 1 Map Filters NONE Filters NONE Steam 1 RUN: 28450786-0b85-412b-acf1-6ce70f8b457f